[Event "13th BPB Limburg Open 2019"]
[Site "Maastricht"]
[Date "2019.06.08"]
[Round "3.8"]
[White "De Jong, Tom"]
[Black "Monroy, Charles"]
[Result "0-1"]
[ECO "C84"]
[WhiteElo "2155"]
[BlackElo "2432"]
[Annotator "NA"]
[PlyCount "66"]
[EventDate "2019.06.07"]
[EventCountry "NED"]
[SourceTitle "playchess.com"]
[Source "ChessBase"]
[SourceQuality "1"]
[TimeControl "7200+15"]

1. e4 {[%emt 0:00:00]} e5 {[%emt 0:00:06]} 2. Nf3 {[%emt 0:00:01]} Nc6 {[%emt 0:00:04]} 3. Bb5 {[%emt 0:00:09]} a6 {[%emt 0:00:06]} 4. Ba4 {[%emt 0:00:07]} Nf6 {[%emt 0:00:11]} 5. O-O {[%emt 0:00:43]} Be7 {[%emt 0:00:25]} 6. d3 {[%emt 0:07:03]} b5 {[%emt 0:01:32]} 7. Bb3 {[%emt 0:00:03]} d6 {[%emt 0:01:41]} 8. a3 {[%emt 0:00:20]} O-O {[%emt 0:01:10]} 9. Nc3 {[%emt 0:00:25]} Bg4 {[%emt 0:15:38]} 10. Be3 {[%emt 0:00:36]} Nd4 {[%emt 0:12:13] C84: Closed Ruy Lopez: Unusual White 6th moves} 11. Bxd4 {[%emt 0:00:23]} exd4 {[%emt 0:00:04]} 12. Nd5 {[%emt 0:00:13]} c5 {[%emt 0:00:52]} (12... Nd7 13. h3 Bxf3 14. Qxf3 c6 15. Nf4 Nc5 16. Ba2 a5 17. Qg4 Kh8 18. Ne2 {1-0 (48) Caruana,F (2828)-Postny,E (2623) chess.com INT 2019}) 13. c3 {[%emt 0:12:05]} dxc3 {[%emt 0:18:08]} 14. bxc3 {[%emt 0:00:25]} Rc8 $146 {[%emt 0:01:24]} ({Predecessor:} 14... Re8 15. h3 Be6 16. Ne3 c4 17. dxc4 Nxe4 18. Bc2 {½-½ (53) Tan,J (2239)-Illingworth,M (2422) Nadi 2013}) 15. Re1 {[%emt 0:11:26]} c4 {[%emt 0:04:05]} 16. dxc4 {[%emt 0:03:55]} bxc4 {[%emt 0:00:23]} 17. Ba2 {[%emt 0:00:12]} Nxd5 {[%emt 0:01:00]} 18. Qxd5 {[%emt 0:02:28]} Bxf3 {[%emt 0:02:57]} 19. gxf3 {[%emt 0:00:03]} Rc5 {[%emt 0:00:10]} 20. Qb7 {[%emt 0:07:35]} Bf6 {[%emt 0:06:55]} 21. Red1 {[%emt 0:02:57]} Be5 {[%emt 0:12:29]} 22. Rd5 {[%emt 0:05:57]} Qh4 {[%emt 0:01:01]} 23. Kf1 {[%emt 0:03:22]} Rcc8 {[%emt 0:00:36]} 24. Rb1 {[%emt 0:02:37]} f5 {[%emt 0:01:15]} 25. Bxc4 {[%emt 0:04:51]} Qh3+ $17 {[%emt 0:08:38] Double Attack} ({And not} 25... Rxc4 {[#]} 26. Rxe5 $1 {[%mdl 512]} Qh3+ {[%mdl 64] Double Attack} 27. Ke2 $11) 26. Ke2 {[%emt 0:16:25]} Kh8 {[%emt 0:05:24]} 27. Bd3 {[%emt 0:00:49]} Rxc3 {[%emt 0:04:14]} 28. exf5 {[%emt 0:12:42]} Re8 {[%emt 0:03:37]} 29. Qf7 {[%emt 0:02:40]} Rcc8 {[%emt 0:00:18]} 30. Rb7 {[%emt 0:02:47]} Bf6+ {[%emt 0:05:12]} 31. Be4 {[%emt 0:01:16]} Rxe4+ {[%emt 0:02:21]} 32. fxe4 {[%emt 0:00:42]} Qg4+ {[%emt 0:00:10]} 33. Kd2 {[%emt 0:09:22]} Bg5+ {[%emt 0:00:52]} 0-1

[Event "13th BPB Limburg Open 2019"]
[Site "Maastricht"]
[Date "2019.06.08"]
[Round "3.9"]
[White "Leenhouts, Koen"]
[Black "Elgersma, Onno"]
[Result "1/2-1/2"]
[ECO "E39"]
[WhiteElo "2432"]
[BlackElo "2173"]
[Annotator "NA"]
[PlyCount "70"]
[EventDate "2019.06.07"]
[EventCountry "NED"]
[SourceTitle "playchess.com"]
[Source "ChessBase"]
[SourceQuality "1"]
[TimeControl "7200+15"]

1. d4 {[%emt 0:03:58]} Nf6 {[%emt 0:00:58]} 2. c4 {[%emt 0:00:44]} e6 {[%emt 0:00:07]} 3. Nc3 {[%emt 0:00:12]} Bb4 {[%emt 0:00:26]} 4. Qc2 {[%emt 0:00:11]} O-O {[%emt 0:00:28]} 5. Nf3 {[%emt 0:01:02]} c5 {[%emt 0:01:09]} 6. dxc5 {[%emt 0:00:12]} Na6 {[%emt 0:00:35]} 7. g3 {[%emt 0:00:12]} Nxc5 {[%emt 0:00:28]} 8. Bg2 {[%emt 0:00:09]} b6 {[%emt 0:01:21]} 9. O-O {[%emt 0:00:26] E39: Nimzo-Indian: Classical: 4...c5 5 dxc5 0-0} Bb7 {[%emt 0:00:14]} 10. Nb5 {[%emt 0:00:25]} Be4 {[%emt 0:00:17]} 11. Qd1 {[%emt 0:00:20]} Nb7 {[%emt 0:03:07]} 12. Bf4 {[%emt 0:01:45]} Rc8 {[%emt 0:11:15]} (12... a6 13. Nd6 Nxd6 14. Bxd6 Bxd6 15. Qxd6 Qc8 16. Rac1 Qb7 {0-1 (41) Lenic,L (2656)-Iturrizaga Bonelli,E (2636) chess.com INT 2018}) 13. Rc1 {[%emt 0:07:22]} a6 {[%emt 0:02:32]} 14. Nc3 $146 {[%emt 0:00:23]} ({Predecessor:} 14. Nd6 Nxd6 15. Bxd6 Bxd6 16. Qxd6 Rc6 {½-½ (40) Omar,N (2353)-Debashis,D (2539) Abu Dhabi 2018}) 14... Bxc3 {[%emt 0:03:20]} 15. Rxc3 {[%emt 0:00:13]} d5 {[%emt 0:01:09]} 16. Qc1 {[%emt 0:20:08]} d4 {[%emt 0:13:31]} 17. Ra3 {[%emt 0:00:15]} b5 {[%emt 0:01:11]} 18. Be5 {[%emt 0:04:54]} Rxc4 {[%emt 0:06:46]} 19. Qg5 {[%emt 0:05:18]} h6 {[%emt 0:14:43]} 20. Bxf6 {[%emt 0:06:04]} hxg5 {[%emt 0:11:45]} 21. Bxd8 {[%emt 0:00:08]} Rxd8 {[%emt 0:00:03]} 22. Rxa6 {[%emt 0:07:07]} Rc2 {[%emt 0:06:54]} 23. Nxg5 {[%emt 0:01:09]} Bxg2 {[%emt 0:00:18]} 24. Kxg2 {[%emt 0:00:09]} Rxe2 {[%emt 0:01:46]} 25. Rd1 {[%emt 0:05:27]} e5 {[%emt 0:08:23]} 26. b3 $17 {[%emt 0:05:16]} (26. Rc1 $1 $11 {remains equal.} Rf8 27. Rb6) 26... g6 {[%emt 0:04:37]} 27. Kf1 {[%emt 0:04:34]} Rc2 {[%emt 0:02:03]} 28. Ne4 {[%emt 0:00:21]} Rdc8 {[%emt 0:05:39]} 29. Ra7 {[%emt 0:03:22]} Nc5 {[%emt 0:07:02]} 30. Nd6 {[%emt 0:00:57]} Rc6 {[%emt 0:00:42]} 31. Nxf7 {[%emt 0:01:21]} Ne4 {[%emt 0:00:54]} 32. Nxe5 {[%emt 0:07:03]} Rxf2+ {[%emt 0:00:13]} 33. Kg1 {[%emt 0:00:07]} Rcc2 {[%emt 0:00:23]} 34. Ra8+ {[%emt 0:00:28]} Kg7 {[%emt 0:00:29]} 35. Ra7+ {[%emt 0:00:06]} Kg8 {[%emt 0:01:03]} 1/2-1/2

[Event "13th BPB Limburg Open 2019"]
[Site "Maastricht"]
[Date "2019.06.08"]
[Round "3.11"]
[White "Decoster, Frederic"]
[Black "Blom, Vincent"]
[Result "1/2-1/2"]
[ECO "B32"]
[WhiteElo "2293"]
[BlackElo "2291"]
[Annotator "ChessBase"]
[PlyCount "76"]
[EventDate "2019.06.07"]
[EventCountry "NED"]
[SourceTitle "playchess.com"]
[Source "ChessBase"]
[SourceQuality "1"]
[TimeControl "7200+15"]

1. e4 {[%emt 0:00:00]} c5 {[%emt 0:02:44]} 2. Nf3 {[%emt 0:00:09]} Nc6 {[%emt 0:00:06]} 3. d4 {[%emt 0:00:20]} cxd4 {[%emt 0:00:06]} 4. Nxd4 {[%emt 0:00:16]} e5 {[%emt 0:00:06]} 5. Nb5 {[%emt 0:00:21]} a6 {[%emt 0:00:23]} 6. Nd6+ {[%emt 0:00:55]} Bxd6 {[%emt 0:00:05]} 7. Qxd6 {[%emt 0:00:07]} Qf6 {[%emt 0:01:01]} 8. Qxf6 {[%emt 0:02:06]} Nxf6 {[%emt 0:00:06]} 9. Nc3 {[%emt 0:02:25]} Nb4 {[%emt 0:03:52]} 10. Bd3 {[%emt 0:03:32]} h6 {[%emt 0:09:31]} 11. f4 {[%emt 0:09:28]} d6 {[%emt 0:10:10]} 12. O-O {[%emt 0:09:41]} Nxd3 {[%emt 0:16:37]} 13. cxd3 {[%emt 0:01:09]} Bd7 {[%emt 0:00:18]} 14. Be3 {[%emt 0:04:11]} Bc6 {[%emt 0:11:22]} 15. a4 {[%emt 0:09:00]} Ke7 {[%emt 0:17:25]} 16. h3 {[%emt 0:11:25]} b5 {[%emt 0:20:39]} 17. a5 {[%emt 0:15:40]} Rac8 {[%emt 0:05:47]} 18. b4 {[%emt 0:09:19]} Bb7 {[%emt 0:04:55]} 19. Rac1 {[%emt 0:06:24]} exf4 {[%emt 0:07:18]} 20. Bxf4 {[%emt 0:03:13]} d5 {[%emt 0:06:10]} 21. e5 {[%emt 0:01:13]} Nd7 {[%emt 0:00:37]} 22. Ne2 {[%emt 0:07:21]} Rxc1 {[%emt 0:00:45]} 23. Rxc1 {[%emt 0:00:07]} Rc8 {[%emt 0:00:11]} 24. Rxc8 {[%emt 0:03:33]} Bxc8 {[%emt 0:00:02]} 25. Nd4 {[%emt 0:01:48]} Nf8 {[%emt 0:00:17]} 26. Kf2 {[%emt 0:00:51]} Bd7 {[%emt 0:02:03]} 27. Ke3 {[%emt 0:00:47]} h5 {[%emt 0:00:31]} 28. Ne2 {[%emt 0:05:24]} Ne6 {[%emt 0:00:12]} 29. d4 {[%emt 0:02:22]} g6 {[%emt 0:00:33]} 30. Bg3 {[%emt 0:02:27]} Ke8 {[%emt 0:00:14]} 31. Bh4 {[%emt 0:01:19]} Ng7 {[%emt 0:00:38]} 32. Bf6 {[%emt 0:01:19]} Ne6 {[%emt 0:00:01]} 33. Nc3 {[%emt 0:02:00]} Bc6 {[%emt 0:00:01]} 34. Nd1 {[%emt 0:00:18]} Bd7 {[%emt 0:00:11]} 35. Nf2 {[%emt 0:00:12]} Bc8 {[%emt 0:00:25]} 36. g4 {[%emt 0:00:11]} hxg4 {[%emt 0:00:08]} 37. Nxg4 {[%emt 0:00:08]} Nc7 {[%emt 0:00:37]} 38. Nf2 {[%emt 0:00:51]} Bf5 {[%emt 0:00:05] Ke4} 1/2-1/2

[Event "13th BPB Limburg Open 2019"]
[Site "Maastricht"]
[Date "2019.06.09"]
[Round "4.11"]
[White "Asadzade, Idris"]
[Black "Admiraal, Miguoel"]
[Result "0-1"]
[ECO "D17"]
[WhiteElo "2125"]
[BlackElo "2507"]
[Annotator "RC"]
[PlyCount "160"]
[EventDate "2019.06.07"]
[EventCountry "NED"]
[SourceTitle "playchess.com"]
[Source "ChessBase"]
[SourceQuality "1"]
[TimeControl "7200+15"]

1. d4 {[%emt 0:00:00]} d5 {[%emt 0:18:46]} 2. c4 {[%emt 0:00:08]} c6 {[%emt 0:00:18]} 3. Nc3 {[%emt 0:00:18]} Nf6 {[%emt 0:00:17]} 4. Nf3 {[%emt 0:00:29]} dxc4 {[%emt 0:00:30]} 5. a4 {[%emt 0:00:44]} Bf5 {[%emt 0:00:12]} 6. Ne5 {[%emt 0:00:35]} Nbd7 {[%emt 0:00:05]} 7. Nxc4 {[%emt 0:00:22]} Nb6 {[%emt 0:00:09]} 8. Ne5 {[%emt 0:00:38]} a5 {[%emt 0:00:04]} 9. f3 {[%emt 0:02:10]} Nfd7 {[%emt 0:00:06]} 10. Nxd7 {[%emt 0:07:24]} Nxd7 {[%emt 0:02:51]} 11. e4 {[%emt 0:00:09]} Bg6 {[%emt 0:00:04]} 12. Qb3 {[%emt 0:02:32]} e5 {[%emt 0:10:51]} 13. dxe5 {[%emt 0:04:42]} Bb4 {[%emt 0:00:09]} 14. Be3 {[%emt 0:07:11]} Nxe5 {[%emt 0:03:58]} 15. Bc4 {[%emt 0:03:22]} Qh4+ {[%emt 0:15:36]} 16. Bf2 {[%emt 0:16:44]} Qg5 {[%emt 0:01:08]} 17. Bf1 {[%emt 0:02:52]} Rd8 {[%emt 0:04:30]} 18. Qc2 {[%emt 0:06:38]} h5 {[%emt 0:06:21]} 19. h4 {[%emt 0:03:05]} Qf4 {[%emt 0:00:57]} 20. Qc1 {[%emt 0:01:32]} Qxc1+ {[%emt 0:09:31]} 21. Rxc1 {[%emt 0:00:05]} f6 {[%emt 0:00:03]} 22. Be3 {[%emt 0:06:13]} Bf7 {[%emt 0:01:47]} 23. Kf2 {[%emt 0:00:48]} Bb3 {[%emt 0:00:27]} 24. Ra1 {[%emt 0:05:22]} Kf7 {[%emt 0:06:45]} 25. Be2 {[%emt 0:04:04]} Nd7 {[%emt 0:12:18]} 26. Na2 {[%emt 0:03:07]} Bc5 {[%emt 0:00:26]} 27. Nc1 {[%emt 0:03:45]} Be6 {[%emt 0:01:19]} 28. Nd3 {[%emt 0:00:55]} Bxe3+ {[%emt 0:00:10]} 29. Kxe3 {[%emt 0:00:01]} Ke7 {[%emt 0:03:13]} 30. Rhd1 {[%emt 0:02:15]} Bc4 {[%emt 0:05:19]} 31. Nf4 {[%emt 0:01:33]} Bf7 {[%emt 0:00:07]} 32. Nd3 {[%emt 0:03:25]} Ra8 {[%emt 0:00:41]} 33. Rdc1 {[%emt 0:01:15]} Ra6 {[%emt 0:02:52]} 34. Ra3 {[%emt 0:02:16]} Rb6 {[%emt 0:00:13]} 35. Rcc3 {[%emt 0:02:13]} Rd8 {[%emt 0:05:38]} 36. f4 {[%emt 0:05:12]} Kd6 {[%emt 0:02:23]} 37. b3 {[%emt 0:03:43]} Re8 {[%emt 0:00:10]} 38. Bf3 {[%emt 0:02:57]} Bg6 {[%emt 0:03:14]} 39. Rc4 {[%emt 0:02:11]} Bf7 {[%emt 0:00:11]} 40. Rc3 {[%emt 0:00:35]} Bd5 {[%emt 0:01:00]} 41. Kd4 {[%emt 0:02:36]} c5+ {[%emt 0:01:10]} 42. Ke3 {[%emt 0:00:18]} Bxe4 {[%emt 0:00:40]} 43. Bxe4 {[%emt 0:00:02]} f5 {[%emt 0:00:01]} 44. Rc4 {[%emt 0:00:49]} fxe4 {[%emt 0:01:14]} 45. Rxe4 {[%emt 0:00:05]} Rxe4+ {[%emt 0:00:28]} 46. Kxe4 {[%emt 0:00:01]} Ke6 {[%emt 0:00:51]} 47. f5+ {[%emt 0:02:01]} Kd6 {[%emt 0:00:01]} 48. Nb2 {[%emt 0:00:25]} Nf6+ {[%emt 0:00:02]} 49. Kf4 {[%emt 0:00:12]} Rb4+ {[%emt 0:02:02]} 50. Nc4+ {[%emt 0:00:04]} Ke7 {[%emt 0:00:13]} 51. Kg5 {[%emt 0:01:26]} Kf8 {[%emt 0:00:34]} 52. Kf4 {[%emt 0:00:34]} Ke7 {[%emt 0:00:25]} 53. Kg5 {[%emt 0:00:20]} Kf7 {[%emt 0:00:23]} 54. Ne5+ {[%emt 0:00:46]} Kf8 {[%emt 0:00:23]} 55. Nc4 {[%emt 0:00:17]} Nd5 {[%emt 0:00:22]} 56. Kxh5 {[%emt 0:00:49]} Nf4+ {[%emt 0:00:05]} 57. Kg4 {[%emt 0:00:36]} Nxg2 {[%emt 0:00:12]} 58. Kg3 {[%emt 0:00:15]} Ne1 {[%emt 0:00:03]} 59. Nxa5 {[%emt 0:00:27]} Nc2 {[%emt 0:00:01]} 60. Ra2 {[%emt 0:00:26]} Nd4 {[%emt 0:00:01]} 61. Rf2 {[%emt 0:01:05]} b6 {[%emt 0:00:00]} 62. Nc4 {[%emt 0:00:40]} Nxb3 {[%emt 0:00:02]} 63. Rb2 {[%emt 0:00:35]} Ke7 {[%emt 0:01:31]} 64. Ne5 {[%emt 0:00:43]} Na5 {[%emt 0:00:02]} 65. Nd3 {[%emt 0:01:38]} Rxa4 {[%emt 0:00:20]} 66. Nf4 {[%emt 0:02:27]} Nc4 {[%emt 0:00:01]} 67. Rb3 {[%emt 0:00:30]} Kf6 {[%emt 0:00:26]} 68. Nd5+ {[%emt 0:00:11]} Kxf5 {[%emt 0:00:04]} 69. Nxb6 {[%emt 0:00:15]} Ra3 {[%emt 0:00:41]} 70. Rxa3 {[%emt 0:00:21]} Nxa3 {[%emt 0:00:01]} 71. Kf3 {[%emt 0:00:22]} Nb5 {[%emt 0:00:21]} 72. Nc4 {[%emt 0:00:47]} Nd4+ {[%emt 0:00:15]} 73. Ke3 {[%emt 0:00:08]} Kg4 {[%emt 0:00:22]} 74. Ne5+ {[%emt 0:00:04]} Kxh4 {[%emt 0:00:05]} 75. Nd7 {[%emt 0:00:04]} Ne6 {[%emt 0:00:24]} 76. Ke4 {[%emt 0:00:25]} g5 {[%emt 0:00:04]} 77. Ne5 {[%emt 0:00:24]} g4 {[%emt 0:00:13]} 78. Kd5 {[%emt 0:00:35]} g3 {[%emt 0:00:10]} 79. Nf3+ {[%emt 0:00:33]} Kg4 {[%emt 0:00:21]} 80. Ng1 {[%emt 0:00:04]} g2 {[%emt 0:00:28] Kd4} 0-1

[Event "13th BPB Limburg Open 2019"]
[Site "Maastricht"]
[Date "2019.06.09"]
[Round "5.5"]
[White "Klein, Felix"]
[Black "Sadzikowski, Daniel"]
[Result "0-1"]
[ECO "C91"]
[WhiteElo "2328"]
[BlackElo "2510"]
[Annotator "ChessBase"]
[PlyCount "52"]
[EventDate "2019.06.07"]
[EventCountry "NED"]
[SourceTitle "playchess.com"]
[Source "ChessBase"]
[SourceQuality "1"]
[TimeControl "7200+15"]

1. e4 {[%emt 0:04:42]} e5 {[%emt 0:00:00]} 2. Nf3 {[%emt 0:00:11]} Nc6 {[%emt 0:00:02]} 3. Bb5 {[%emt 0:00:03]} a6 {[%emt 0:00:04]} 4. Ba4 {[%emt 0:00:03]} Nf6 {[%emt 0:00:05]} 5. O-O {[%emt 0:00:08]} Be7 {[%emt 0:00:10]} 6. Re1 {[%emt 0:00:12]} b5 {[%emt 0:00:05]} 7. Bb3 {[%emt 0:00:03]} d6 {[%emt 0:00:07]} 8. c3 {[%emt 0:00:30]} O-O {[%emt 0:00:07]} 9. d4 {[%emt 0:00:57]} Bg4 {[%emt 0:00:07]} 10. Be3 {[%emt 0:00:07]} Bh5 {[%emt 0:01:15]} 11. Nbd2 {[%emt 0:07:33]} exd4 {[%emt 0:02:32]} 12. cxd4 {[%emt 0:00:21]} Na5 {[%emt 0:00:02]} 13. Bc2 {[%emt 0:00:56]} c5 {[%emt 0:00:13]} 14. d5 {[%emt 0:09:02]} Ng4 {[%emt 0:09:13]} 15. Bf4 {[%emt 0:02:03]} Ne5 {[%emt 0:01:03]} 16. b3 {[%emt 0:02:18]} Bf6 {[%emt 0:04:14]} 17. Rc1 {[%emt 0:04:33]} c4 {[%emt 0:00:13]} 18. Nf1 {[%emt 0:05:44]} Bxf3 {[%emt 0:11:02]} 19. gxf3 {[%emt 0:00:10]} Ng6 {[%emt 0:07:17]} 20. Be3 {[%emt 0:06:16]} Bc3 {[%emt 0:08:42]} 21. Ng3 {[%emt 0:10:18]} Bxe1 {[%emt 0:05:10]} 22. Qxe1 {[%emt 0:01:21]} Nh4 {[%emt 0:00:06]} 23. Qe2 {[%emt 0:01:23]} cxb3 {[%emt 0:15:57]} 24. axb3 {[%emt 0:00:13]} Rc8 {[%emt 0:00:55]} 25. f4 {[%emt 0:01:26]} Rc3 {[%emt 0:04:21]} 26. Bd4 {[%emt 0:07:01]} Nf3+ {[%emt 0:01:01] Be3 Nh4} 0-1

[Event "13th BPB Limburg Open 2019"]
[Site "Maastricht"]
[Date "2019.06.10"]
[Round "7.11"]
[White "Haast, Mark"]
[Black "Stricker, Florian"]
[Result "1-0"]
[ECO "E09"]
[WhiteElo "2392"]
[BlackElo "2061"]
[Annotator "NA"]
[PlyCount "25"]
[EventDate "2019.06.07"]
[EventCountry "NED"]
[SourceTitle "playchess.com"]
[Source "ChessBase"]
[SourceQuality "1"]
[TimeControl "7200+15"]

1. g3 {[%emt 0:00:04]} Nf6 {[%emt 0:00:25]} 2. Bg2 {[%emt 0:00:31]} d5 {[%emt 0:00:00]} 3. c4 {[%emt 0:00:29]} e6 {[%emt 0:00:00]} 4. Nf3 {[%emt 0:00:54]} c6 {[%emt 0:00:23]} 5. O-O {[%emt 0:00:28]} Be7 {[%emt 0:00:02]} 6. d4 {[%emt 0:00:57]} O-O {[%emt 0:00:41]} 7. Qc2 {[%emt 0:01:23]} b6 {[%emt 0:00:11]} 8. Nbd2 {[%emt 0:00:33]} Ba6 {[%emt 0:00:21]} 9. b3 {[%emt 0:00:58]} Nbd7 {[%emt 0:01:06]} 10. Bb2 {[%emt 0:00:57]} Rc8 {[%emt 0:00:26]} 11. e4 {[%emt 0:00:31]} c5 {[%emt 0:00:35]} 12. exd5 {[%emt 0:00:27]} exd5 {[%emt 0:00:27]} 13. Qf5 {[%emt 0:01:25]} 1-0